Cogmind - Beta 15 @@@ ROGUE MODE // 2025.07.09 @ 17:37:07 Player: Snips Result: Destroyed by G5-9NR(R) with Subdweller Machine Gun Performance ------------- Evolutions (0) 0 Regions Visited (3) 600 Robots Destroyed (11) 55 Value Destroyed (231) 231 Prototype IDs (0) 0 Alien Tech Used (0) 0 Bonus (0) 0 TOTAL SCORE: 886 Bonus ------- None Cogmind --------- Core Integrity 0/250 Matter 270/300 Energy 125/125 System Corruption 13% Temperature Cool (0) Movement Walking (260) Ox2 Location -10/Subcaves Parts ------- > --- POWER (1) -------- Light Ion Engine > --- PROPULSION (2) --- Aluminum Leg Aluminum Leg > --- UTILITY (2) ------ Heat Sink (fused) High-capacity Storage Unit > --- WEAPON (2) ------- Small Laser Small Laser > --- INVENTORY (20) --- Light Ion Engine Hover Unit Hover Unit Heat Sink Medium Storage Unit Medium Storage Unit High-capacity Storage Unit Visual Processing Unit Signal Interpreter Signal Interpreter Propulsion Shielding Tractor Beam Small Laser Small Laser Particle Gun Grenade Launcher Peak State ------------ > --- POWER ------------ Ion Engine > --- PROPULSION ------- Aluminum Leg Aluminum Leg > --- UTILITY ---------- Heat Sink High-capacity Storage Unit > --- WEAPON ----------- Medium Laser Small Laser > --- INVENTORY -------- Light Ion Engine Light Ion Engine Aluminum Leg Hover Unit Hover Unit Heat Sink Medium Storage Unit Medium Storage Unit High-capacity Storage Unit Visual Processing Unit Signal Interpreter Signal Interpreter Propulsion Shielding Tractor Beam Small Laser Small Laser Small Laser Particle Gun [Rating: 9] Favorites ----------- Power Ion Engine Engine Ion Engine Propulsion Aluminum Leg Leg Aluminum Leg Utility High-capacity Storage Unit Device Heat Sink Storage High-capacity Storage Unit Weapon Medium Laser Energy Gun Medium Laser Special Weapon Mining Laser Build | -11 -10 -10 -10 ------- Run | Yrd Mat Min Sub Slots Evolved . | . . . . Power . | . . . . Propulsion . | . . . . Utility . | . . . . Weapon . | . . . . Parts Attached 21 | 6 11 3 1 Power 4 | 1 2 1 . Engine 4 | 1 2 1 . Core . | . . . . Reactor . | . . . . Propulsion 5 | 2 2 1 . Treads . | . . . . Leg 5 | 2 2 1 . Wheel . | . . . . Hover . | . . . . Flight . | . . . . Utility 6 | 2 4 . . Device 3 | 1 2 . . Storage 3 | 1 2 . . Processor . | . . . . Hackware . | . . . . Protection . | . . . . Artifact . | . . . . Weapon 6 | 1 3 1 1 Energy Gun 5 | 1 2 1 1 Energy Cannon . | . . . . Ballistic Gun . | . . . . Ballistic Cannon . | . . . . Launcher . | . . . . Special Weapon 1 | . 1 . . Impact Weapon . | . . . . Slashing Weapon . | . . . . Piercing Weapon . | . . . . Special Melee Weapon . | . . . . Unidentified Prototypes . | . . . . Parts Lost 12 | . 9 1 2 Power 3 | . 2 1 . Propulsion 3 | . 2 . 1 Utility 2 | . 2 . . Weapon 4 | . 3 . 1 Highest Loss Streak 4 | . 4 1 2 To Critical Strikes . | . . . . Average Backups 11 | 1 6 16 18 Power 1 | . . 1 1 Propulsion 2 | . 1 2 3 Utility 5 | . 3 8 9 Weapon 2 | . . 4 5 Tool/Special . | . . . . Unused Backups 16 | . 1 . 15 Power 1 | . . . 1 Propulsion 2 | . . . 2 Utility 9 | . 1 . 8 Weapon 4 | . . . 4 Tool/Special . | . . . . Average Slot Usage (%) 85 | . 69 99 98 Engine 12 | . 11 13 14 Leg 18 | . 8 28 28 Device 12 | . 9 14 14 Storage 14 | . 14 14 14 Energy Gun 21 | . 15 28 26 Special Weapon 4 | . 9 . . Peak Build Rating 9 | 6 8 9 9 Average Rating 6 | 3 5 8 8 On Entrance 5 | . 6 7 9 Naked Turns . | . . . . Heaviest Build 50 | 13 50 49 47 Greatest Support 20 | 20 20 20 20 Greatest Overweight (x) 16 | . 16 2 2 Average Overweight (x) 2 | . 3 2 2 Largest Inventory Capacity 20 | 8 20 20 20 Average Capacity 15 | 5 13 20 20 Most Carried 19 | 2 13 19 18 Average Carried 11 | 1 6 16 17 Final Capacity 20 | 8 20 20 20 Final Carried 18 | 2 13 18 16 Class Distribution -------------------- 53% | Scavenger-Mutant 46% | Mutant Dominant Class ---------------- Mutant | -10/Materials Scavenger-Mutant | -10/Mines Scavenger-Mutant | -10/Subcaves Resources | -11 -10 -10 -10 ----------- Run | Yrd Mat Min Sub Matter Collected 480 | 260 64 156 . Remotely . | . . . . Salvage Created 433 | 119 144 170 . Parts 21 | 4 10 7 . Haulers Intercepted . | . . . . Recyclers Shooed . | . . . . Parts Field Recycled . | . . . . Retrieved Matter . | . . . . Parts Self-Destructed . | . . . . Prevented . | . . . . Kills | -11 -10 -10 -10 ------- Run | Yrd Mat Min Sub Combat Hostiles Destroyed 5 | . 4 1 . Guns 3 | . 2 1 . Cannons 2 | . 2 . . Classes Destroyed 6 | 2 2 2 . Worker 1 | . . 1 . Tunneler 1 | 1 . . . Recycler 3 | 1 . 2 . Watcher 1 | . 1 . . Grunt 4 | . 4 . . Demolisher 1 | . . 1 . Best Kill Streak 2 | 1 2 2 . Combat Bots Only 2 | . 2 1 . Max Kills in Single Turn 1 | 1 1 1 . Gunslinging . | . . . . Exploded . | . . . . Melee . | . . . . Uniques/NPCs Destroyed . | . . . . Combat | -11 -10 -10 -10 -------- Run | Yrd Mat Min Sub Hostile Shots Fired 84 | . 70 3 11 Missed 23 | . 19 . 4 Hits 61 | . 51 3 7 Projectile 61 | . 51 3 7 AOE 2 | . . 2 . Damage Taken 1384 | . 1133 96 155 Core 264 | . 238 . 26 Absorbed by Shields . | . . . . Core Remaining (%) 100 | 100 . . . Volleys Fired 79 | 15 40 18 6 Largest 2 | 1 2 2 2 Hottest 150 | 50 150 90 90 Shots Fired 112 | 15 50 36 11 Gun 96 | 15 34 36 11 Cannon . | . . . . Launcher . | . . . . Special 16 | . 16 . . Kinetic . | . . . . Thermal 112 | 15 50 36 11 Explosive . | . . . . Electromagnetic . | . . . . Robot Hit Streak 20 | 6 7 20 9 Robot Miss Streak 3 | 1 3 1 1 Penetration Max . | . . . . Secondary Targets . | . . . . Shots Hit Robots 65 | 9 27 19 10 Core Hits 19 | 3 8 7 1 Critical Kills . | . . . . Critical Parts Destroyed . | . . . . Critical Strikes 6 | . 4 1 1 Burn 6 | . 4 1 1 Melee Attacks . | . . . . Impact . | . . . . Slashing . | . . . . Piercing . | . . . . Sneak Attacks . | . . . . Combat Hostiles . | . . . . Follow-up Attacks . | . . . . Damage Inflicted 836 | 112 384 225 115 Guns 740 | 112 288 225 115 Cannons . | . . . . Explosions . | . . . . Melee . | . . . . Ramming . | . . . . Kinetic . | . . . . Thermal 836 | 112 384 225 115 Explosive . | . . . . Electromagnetic . | . . . . Impact . | . . . . Slashing . | . . . . Piercing . | . . . . Highest Corruption 13 | . 13 13 13 Average Corruption 12 | . 12 13 13 Corruption Purged . | . . . . Corruption Blocked . | . . . . Effects 58 | . 28 29 1 Message Errors 15 | . 9 5 1 Matter Fused 18 | . 7 11 . Heat Flow Errors 5 | . 3 2 . Energy Discharges 7 | . 4 3 . Parts Rejected 1 | . 1 . . Parts Fused 1 | . . 1 . Data Loss (minor) 8 | . 3 5 . Data Loss (major) 2 | . 1 1 . Alerts 1 | . . 1 . Overload Shots . | . . . . Overflow Damage . | . . . . Projectiles . | . . . . Explosions . | . . . . Melee . | . . . . Knockbacks . | . . . . Impact . | . . . . Kinetic . | . . . . Secondary . | . . . . Self-Inflicted Damage . | . . . . Shots . | . . . . Rammed . | . . . . Targets Rammed . | . . . . Kicked . | . . . . Crushed . | . . . . Highest Temperature 303 | 90 303 154 . Average Temperature 73 | 33 77 114 . Received Heat Transfer 345 | . 336 9 . Siege Activations . | . . . . Martial Activations . | . . . . Shielding Activations . | . . . . Robots Disrupted . | . . . . Combat Hostiles . | . . . . Robots Corrupted . | . . . . Combat Hostiles . | . . . . Parts Fried . | . . . . Impact Corruptions . | . . . . Robots Melted . | . . . . Combat Hostiles . | . . . . Parts Melted 1 | . 1 . . Heat Transferred 2721 | 333 1347 669 372 Parts Sabotaged . | . . . . Parts Stolen . | . . . . Parts Stripped . | . . . . Power Chain Reactions . | . . . . Alert | -11 -10 -10 -10 ------- Run | Yrd Mat Min Sub Maximum Alert Level . | . . . . Low Security (%) 100 | 100 100 100 . Level 1 . | . . . . Level 2 . | . . . . Level 3 . | . . . . Level 4 . | . . . . Level 5 . | . . . . High Security . | . . . . Max Security . | . . . . Peak Influence 30 | 5 30 20 . Initial 5 | . . 5 . Average 2 | 1 4 . . Influence Increases 183 | 10 138 35 . Destroy 0b10 Robot/C 100 | . 80 20 . Destroy 0b10 Robot/NC 30 | 10 5 15 . Destroy Leader 22 | . 22 . . Destroy Structure 1 | . 1 . . Lose Combat Pursuer 30 | . 30 . . Influence Decreases 183 | 10 123 50 . Entered New Map 10 | . . 10 . Time Decay 163 | 10 113 40 . Lost Part 10 | . 10 . . Squads Dispatched 2 | . 2 . . Investigation 1 | . 1 . . Extermination . | . . . . Reinforcement 1 | . 1 . . Assault . | . . . . Garrison . | . . . . Intercept . | . . . . Searches Triggered . | . . . . Construction Impeded . | . . . . Haulers Reinforced . | . . . . Active Scanning Responses . | . . . . Cargo Convoy Interrupts . | . . . . Stealth | -11 -10 -10 -10 --------- Run | Yrd Mat Min Sub Distress Signals . | . . . . Communications Jammed . | . . . . Distress Signals . | . . . . Times Spotted 19 | . 14 3 2 Peak Tracking Total 4 | . 4 2 2 Tactical Retreats 2 | . 2 . . Traps | -11 -10 -10 -10 ------- Run | Yrd Mat Min Sub Traps Triggered 1 | . 1 . . Indirectly . | . . . . Trap Hack Attempts . | . . . . Triggered . | . . . . Disarmed . | . . . . Reprogrammed . | . . . . Reused . | . . . . Traps Extracted . | . . . . Installed . | . . . . Triggered . | . . . . Machines | -11 -10 -10 -10 ---------- Run | Yrd Mat Min Sub Machines Disabled . | . . . . Max in Single Turn . | . . . . Machines Repaired . | . . . . Machines Dismantled . | . . . . Machines Sabotaged . | . . . . Overloaded Fab Kills . | . . . . Hacking | -11 -10 -10 -10 --------- Run | Yrd Mat Min Sub Machines Accessed 2 | . 2 . . Terminals 1 | . 1 . . Fabricators . | . . . . Repair Stations . | . . . . Recycling Units 1 | . 1 . . Scanalyzers . | . . . . Garrison Access . | . . . . Total Hacks 7 | . 7 . . Successful 3 | . 3 . . Failed 4 | . 4 . . Catastrophic 2 | . 2 . . Database Lockouts . | . . . . Manual . | . . . . Terminals 3 | . 3 . . Fabricators . | . . . . Repair Stations . | . . . . Recycling Units 4 | . 4 . . Scanalyzers . | . . . . Garrison Access . | . . . . Terminal Hacks 1 | . 1 . . Locate Traps 1 | . 1 . . Fabricator Hacks . | . . . . Repair Station Hacks . | . . . . Recycling Unit Hacks 2 | . 2 . . Report Inventory 1 | . 1 . . Retrieve Components 1 | . 1 . . Scanalyzer . | . . . . Garrison Access Hacks . | . . . . Unauthorized Hacks . | . . . . Terminals . | . . . . Fabricators . | . . . . Repair Stations . | . . . . Recycling Units . | . . . . Scanalyzers . | . . . . Garrison Access . | . . . . Data Cores Recovered . | . . . . Used . | . . . . Hacking Detections 1 | . 1 . . Full Trace Events . | . . . . Feedback Events . | . . . . Feedback Blocked . | . . . . Robot Schematics Acquired . | . . . . Robots Built . | . . . . Authchips . | . . . . Time . | . . . . Total Robot Build Rating . | . . . . Part Schematics Acquired . | . . . . Parts Built . | . . . . Authchips . | . . . . Time . | . . . . Total Part Build Rating . | . . . . Parts Repaired . | . . . . Time . | . . . . Parts Recycled . | . . . . Recycled Matter . | . . . . Retrieved Matter . | . . . . Retrieved Components 4 | . 4 . . Parts Scanalyzed . | . . . . Part Schematics Acquired . | . . . . Parts Damaged . | . . . . Bothacking | -11 -10 -10 -10 ------------ Run | Yrd Mat Min Sub Used RIF Installer . | . . . . Robots Hacked . | . . . . Non-combat . | . . . . Combat . | . . . . Robot Hacks Applied . | . . . . Relay Couplers Released . | . . . . Fabnet Peak Effective % . | . . . . Robots Rewired . | . . . . Allies Hacked . | . . . . Hacks Repelled . | . . . . Allies | -11 -10 -10 -10 -------- Run | Yrd Mat Min Sub Total Allies . | . . . . Largest Group . | . . . . Highest-Rated Group . | . . . . Highest-Rated Ally . | . . . . Total Orders . | . . . . Ally Attacks . | . . . . Total Damage . | . . . . Kills . | . . . . Allies Corrupted . | . . . . Allies Melted . | . . . . Intel | -11 -10 -10 -10 ------- Run | Yrd Mat Min Sub Active Infowar (turns) 307 | 19 288 . . Structural 250 | . 250 . . Seismic 57 | 19 38 . . Robot Analysis Total . | . . . . Derelict Logs Recovered 1 | . . 1 . Drone Launches . | . . . . Drone Recoveries . | . . . . Exploration | -11 -10 -10 -10 ------------- Run | Yrd Mat Min Sub Turns Passed 1703 | 117 758 758 70 Spaces Moved 527 | 65 203 240 19 Core 119 | 5 114 . . Treads . | . . . . Legs 408 | 60 89 240 19 Wheels . | . . . . Hover . | . . . . Flight . | . . . . Fastest Speed 50 | 50 120 260 260 Average Speed 253 | 114 290 260 260 Slowest Speed 850 | 120 850 260 260 Overloaded Moves . | . . . . Propulsion Burnouts . | . . . . Robots Hopped . | . . . . Potential Cave-ins 6 | . 6 . . Cave-ins Triggered 2 | . 2 . . Exploration Rate (%) 29 | 5 43 67 2 Regions Visited 3 Branch Regions 2 Pre-discovered Areas . | . . . . Known Exits Taken . | . . . . Unknown Exits Taken 3 | 1 1 1 . Scrap Searched . | . . . . Spaces Dug 5 | . 5 . . Terrain Destroyed 6 | . 6 . . Melee . | . . . . Projectile 6 | . 6 . . AOE . | . . . . Terrain Rammed . | . . . . Walls Destroyed . | . . . . Machines Disabled . | . . . . Actions | -11 -10 -10 -10 --------- Run | Yrd Mat Min Sub Total 744 | 89 288 339 28 Wait 92 | 2 16 73 1 Move 523 | 64 201 239 19 Hop . | . . . . Pick Up 24 | 2 16 6 . Fast Attach 11 | 6 5 . . Attach 9 | . 5 2 2 Detach . | . . . . Swap 3 | . 2 1 . Drop 2 | . 2 . . Fire 79 | 15 40 18 6 Melee . | . . . . Ram . | . . . . Kick . | . . . . Crush . | . . . . Escape Stasis 1 | . 1 . . Rewire . | . . . . Trap . | . . . . Miscellaneous . | . . . . Route ------- -11/Scrapyard -10/Materials (discovered 2 exits: [*Mat] / [*Min]) -10/Mines -10/Subcaves History --------- Turn | Location | Event 3 | -11/Scrapyard | Discovered new exit (range 15) 118 | -11/Scrapyard | Entered Materials 156 | -10/Materials | Crushed by falling debris 160 | -10/Materials | Crushed by falling debris 160 | -10/Materials | System corruption reached 10% 191 | -10/Materials | Lost 4 parts (1p1n1u1w) 313 | -10/Materials | Build established: Mutant 425 | -10/Materials | Discovered new exit (range 14) 718 | -10/Materials | Core integrity fell below 50% 734 | -10/Materials | Core integrity fell below 20% 790 | -10/Materials | Discovered new exit (range 12) 876 | -10/Materials | Entered Mines 899 | -10/Mines | Met a Derelict bent on vengeance 1068 | -10/Mines | Build established: Scavenger-Mutant 1170 | -10/Mines | YI-UF0 nonchalantly dropped a Grenade Launcher on the ground 1265 | -10/Mines | Assembled infested the area 1394 | -10/Mines | Learned 4 Materials zone layouts 1588 | -10/Mines | Found a hidden stash of uninstalled traps 1619 | -10/Mines | Discovered new exit (range 7) 1634 | -10/Mines | Entered Subcaves 1704 | -10/Subcaves | Destroyed by G5-9NR(R) with Subdweller Machine Gun Last Messages --------------- 01536_ The unstable cave ceiling collapses. 01542_ Acquired 6 matter. 01546_ U-05 Engineer lays Concrete. 01550_ U-05 Engineer builds a Wall. 01551_ U-05 Engineer lays Concrete. 01555_ U-05 Engineer builds a Wall. 01556_ U-05 Engineer lays Concrete. 01560_ >ILMIPZ2Q,APFOMOU,QDPKCCXQVWFB